bitfinex/quotes_BTCUSD_20250222
["timestamp","ask_amount","ask_price","bid_price","bid_amount"]
[1740241282051,0.484484,96909.0,96908.0,0.00304296]
[1740241282212,0.484484,96909.0,96908.0,4.296e-05]
[1740241282415,0.484484,96909.0,96908.0,0.00304296]
[1740241284033,0.634484,96909.0,96908.0,0.00304296]
[1740241286002,0.634484,96909.0,96908.0,0.00474396]
[1740241293196,0.75167054,96909.0,96908.0,0.00474396]
[1740241310246,0.79483554,96909.0,96908.0,0.00474396]
[1740241316577,0.82452671,96909.0,96908.0,0.00474396]
[1740241321887,0.82452671,96909.0,96908.0,0.00374396]
[1740241322263,0.82452671,96909.0,96908.0,0.00174396]
[1740241324169,0.82552671,96909.0,96908.0,0.00174396]
[1740241327872,0.83198849,96909.0,96908.0,0.00174396]
[1740241329558,0.82552671,96909.0,96908.0,0.00174396]
[1740241331642,0.55355617,96909.0,96908.0,0.00174396]
[1740241331868,0.523865,96909.0,96908.0,0.08224396]
[1740241332848,0.522865,96909.0,96908.0,0.25868438]
[1740241332994,0.523865,96909.0,96908.0,0.25868438]
[1740241333538,0.522865,96909.0,96908.0,0.25868438]
[1740241333960,0.522865,96909.0,96908.0,0.10389938]
[1740241334306,0.522865,96909.0,96908.0,0.08324396]
[1740241335016,0.522865,96909.0,96908.0,0.10389938]
[1740241335216,0.193165,96909.0,96908.0,0.10489938]
[1740241335424,0.193165,96909.0,96908.0,0.10589938]
[1740241335645,0.193165,96909.0,96908.0,0.26068438]
[1740241335865,0.043165,96909.0,96908.0,0.30608438]
[1740241336417,0.043165,96909.0,96908.0,0.30508438]
[1740241337240,0.043165,96909.0,96908.0,0.30408438]
[1740241337449,0.043165,96909.0,96908.0,0.41173007]
[1740241337594,0.043165,96909.0,96908.0,0.41873007]
[1740241337757,0.043165,96909.0,96908.0,0.41373007]
[1740241337959,0.044165,96909.0,96908.0,0.42073007]
[1740241345650,0.0008505,96930.0,96908.0,0.14004507]
[1740241345812,0.0008505,96930.0,96929.0,0.280152]
[1740241346012,0.0008505,96930.0,96929.0,0.38279769]
[1740241346217,0.0008505,96930.0,96929.0,0.4051843]
[1740241347723,0.0008505,96930.0,96929.0,0.4131843]
[1740241347943,0.0008505,96930.0,96929.0,0.4121843]
[1740241348163,0.0008505,96930.0,96929.0,0.4191843]
[1740241356957,0.0008505,96930.0,96929.0,0.2937843]
[1740241357419,0.0008505,96930.0,96929.0,0.03638661]
[1740241357645,0.0008505,96930.0,96929.0,0.19113861]
[1740241357909,0.0008505,96930.0,96929.0,0.03638661]
[1740241358398,0.0008505,96930.0,96929.0,0.19113861]
[1740241358638,0.0008505,96930.0,96929.0,0.17713861]
[1740241358880,0.0008505,96930.0,96929.0,0.19113861]
[1740241361195,0.0008505,96930.0,96929.0,0.03638661]
[1740241368214,0.0008505,96930.0,96929.0,0.19113861]
[1740241372840,0.0008505,96930.0,96929.0,0.19045817]
[1740241375947,0.0007727,96930.0,96929.0,0.19045817]
[1740241376910,0.14589311,96937.0,96929.0,0.19045817]
[1740241377119,0.69974117,96940.0,96930.0,0.154749]
[1740241377324,0.154739,96938.0,96931.0,0.01976669]
[1740241378152,0.69974117,96940.0,96931.0,0.01976669]
[1740241378153,0.154737,96939.0,96931.0,0.17451469]
[1740241378356,0.154739,96937.0,96931.0,0.17451469]
[1740241379167,0.154739,96937.0,96931.0,0.17951469]
[1740241379463,0.206316,96939.0,96931.0,0.17951469]
[1740241379658,0.154738,96938.0,96932.0,0.154747]
[1740241379902,0.154737,96939.0,96932.0,0.154747]
[1740241380108,0.3297,96940.0,96933.0,0.01976425]
[1740241380280,0.154736,96939.0,96933.0,0.01976425]
[1740241380483,0.536014,96940.0,96933.0,0.01976425]
[1740241380693,0.479435,96940.0,96933.0,0.154745]
[1740241380897,0.154737,96939.0,96934.0,0.01976303]
[1740241381312,0.154737,96939.0,96932.0,0.156747]
[1740241381521,0.154737,96939.0,96933.0,0.01976425]
[1740241381745,0.154736,96939.0,96933.0,0.01976425]
[1740241381984,0.0008504,96938.0,96933.0,0.01976425]
[1740241382163,0.1555884,96938.0,96933.0,0.01976425]
[1740241382362,0.1555884,96938.0,96932.0,0.002]
[1740241382579,0.1555884,96938.0,96934.0,0.01976303]
[1740241382731,0.1555884,96938.0,96933.0,0.01976425]
[1740241382933,0.1555884,96938.0,96933.0,0.002]
[1740241383143,0.1558551,96937.0,96931.0,0.154748]
[1740241383348,0.1558551,96937.0,96933.0,0.003]
[1740241383917,0.154741,96936.0,96933.0,0.003]
[1740241384138,0.154743,96935.0,96933.0,0.006]
[1740241384344,0.154743,96935.0,96933.0,0.003]
[1740241384549,0.0011161,96937.0,96933.0,0.003]
[1740241384550,0.154744,96934.0,96933.0,0.003]
[1740241384753,0.154762,96923.0,96916.0,0.154772]
[1740241384959,0.15476,96925.0,96915.0,0.206364]
[1740241385202,0.15476,96925.0,96910.0,0.0831]
[1740241385203,0.154757,96927.0,96919.0,0.17454836]
[1740241385409,0.10747744,96928.0,96919.0,0.17454836]
[1740241385679,0.154757,96926.0,96919.0,0.17454836]
[1740241385848,0.10747744,96928.0,96911.0,0.206374]
[1740241386059,0.10747744,96921.0,96920.0,0.17454614]
[1740241386234,0.154752,96929.0,96918.0,0.005]
[1740241386635,0.10747744,96930.0,96919.0,0.211357]
[1740241386837,0.154752,96929.0,96919.0,0.02978136]
[1740241387043,0.26222844,96930.0,96922.0,0.154763]
[1740241387426,0.10747744,96930.0,96929.0,0.154752]
[1740241387647,0.3247,96931.0,96930.0,0.15475]
[1740241388050,0.3247,96931.0,96930.0,0.01976791]
[1740241388262,0.3247,96931.0,96929.0,0.154752]
[1740241388533,0.3247,96931.0,96930.0,0.15475]
[1740241388978,0.3247,96931.0,96930.0,0.17851791]
[1740241389186,0.3247,96931.0,96930.0,0.02376791]
[1740241390178,0.3247,96931.0,96930.0,0.02776791]
[1740241390384,0.3247,96931.0,96930.0,0.02718313]
[1740241390585,0.3247,96931.0,96930.0,0.02659881]
[1740241391718,0.154742,96935.0,96930.0,0.02659881]
[1740241391887,0.1511161,96937.0,96930.0,0.02659881]
[1740241391888,0.0011161,96937.0,96930.0,0.02659881]
[1740241392241,0.154744,96934.0,96930.0,0.02659881]
[1740241392571,0.154744,96934.0,96930.0,0.02259881]
[1740241392770,0.154746,96933.0,96930.0,0.02559881]
[1740241392975,0.2074351,96937.0,96930.0,0.02159881]
[1740241393226,0.154746,96933.0,96930.0,0.02359881]
[1740241393428,0.154742,96936.0,96930.0,0.02159881]
[1740241393653,0.154745,96934.0,96930.0,0.02159881]
[1740241393863,0.154745,96934.0,96930.0,0.02459881]
[1740241394070,0.154745,96934.0,96930.0,0.0077004]
[1740241394332,0.154745,96934.0,96930.0,0.0047004]
[1740241394515,0.154745,96934.0,96930.0,0.0107004]
[1740241394735,0.206321,96936.0,96930.0,0.0107004]
[1740241395168,0.154745,96934.0,96930.0,0.0107004]
[1740241395420,0.206321,96936.0,96930.0,0.0107004]
[1740241395623,0.206323,96935.0,96930.0,0.0107004]
[1740241395824,0.154745,96934.0,96931.0,0.01969362]
[1740241396121,0.154744,96934.0,96931.0,0.01969362]
[1740241396324,0.154744,96934.0,96930.0,0.0017004]
[1740241396540,0.154746,96933.0,96930.0,0.0047004]
[1740241396717,0.206323,96935.0,96931.0,0.01927621]
[1740241396943,0.154744,96935.0,96931.0,0.01927621]
[1740241397158,0.15,96936.0,96931.0,0.01927621]
[1740241397337,0.304742,96936.0,96931.0,0.02227621]
[1740241397532,0.154743,96935.0,96931.0,0.01927621]
[1740241397789,0.304742,96936.0,96931.0,0.02127621]
[1740241397977,0.15,96936.0,96931.0,0.02127621]
[1740241398260,0.154743,96935.0,96931.0,0.02127621]
[1740241398676,0.154743,96935.0,96931.0,0.002]
[1740241399032,0.00100005,96934.0,96932.0,0.01966631]
[1740241399250,0.154747,96932.0,96931.0,0.002]
[1740241399454,0.0011161,96934.0,96931.0,0.002]
[1740241399455,0.2074431,96934.0,96933.0,0.01966509]
[1740241399653,0.2074431,96934.0,96931.0,0.002]
[1740241400043,0.154747,96932.0,96931.0,0.004]
[1740241400316,0.1558611,96934.0,96930.0,0.0017004]
[1740241400516,0.0011161,96934.0,96933.0,0.154746]
[1740241400791,0.0011161,96934.0,96933.0,0.157746]
[1740241400988,0.0011161,96934.0,96933.0,0.154746]
[1740241402206,0.0011161,96934.0,96933.0,0.17441109]
[1740241402420,0.0011161,96934.0,96933.0,0.17741109]
[1740241402630,0.0011161,96934.0,96933.0,0.02266509]
[1740241402860,0.0011161,96934.0,96933.0,0.18041109]
[1740241403508,0.0011161,96934.0,96933.0,0.02566509]
[1740241403679,0.0011161,96934.0,96933.0,0.02266509]
[1740241403890,0.1558601,96934.0,96933.0,0.02266509]
[1740241404124,0.1558601,96934.0,96933.0,0.02566509]
[1740241404314,0.15686015,96934.0,96933.0,0.006]
[1740241404490,0.1558601,96934.0,96933.0,0.009]
[1740241404687,0.1558601,96934.0,96933.0,0.006]
[1740241404891,0.1558601,96934.0,96933.0,0.009]
[1740241405416,0.1558601,96934.0,96933.0,0.006]
[1740241405967,0.1558601,96934.0,96933.0,0.002]
[1740241406168,0.1558601,96934.0,96933.0,0.004]
[1740241406460,0.1558601,96934.0,96933.0,0.002]
[1740241406669,0.1558601,96934.0,96933.0,0.003]
[1740241407346,0.1558601,96934.0,96933.0,0.002]
[1740241407499,0.154746,96933.0,96931.0,0.0017006]
[1740241408692,0.154747,96932.0,96931.0,0.0017006]
[1740241409416,0.154747,96932.0,96931.0,0.0027006]
[1740241409823,0.154747,96932.0,96931.0,0.0037006]
[1740241410159,0.1558611,96934.0,96930.0,0.00146051]
[1740241410360,0.0011161,96934.0,96930.0,0.00146051]
[1740241410887,0.154747,96932.0,96930.0,0.00146051]
[1740241411025,0.154747,96932.0,96931.0,0.001]
[1740241411236,0.0011161,96934.0,96931.0,0.001]
[1740241411444,0.0011161,96934.0,96933.0,0.154746]
[1740241412527,0.0011161,96934.0,96933.0,0.155746]
[1740241413558,0.0011161,96934.0,96933.0,0.158746]
[1740241414280,0.0008503,96935.0,96934.0,0.154744]
[1740241415290,0.0008503,96935.0,96934.0,0.1536279]
[1740241415478,0.0008503,96935.0,96934.0,0.1566279]
[1740241415917,0.0008503,96935.0,96934.0,0.1596279]
[1740241418716,0.0008503,96935.0,96934.0,0.006]
[1740241420597,0.1555923,96935.0,96934.0,0.006]
[1740241420806,0.0008503,96935.0,96934.0,0.006]
[1740241421254,0.1555923,96935.0,96934.0,0.006]
[1740241421854,0.0008503,96935.0,96934.0,0.006]
[1740241422055,0.1555923,96935.0,96934.0,0.003]
[1740241422408,0.0008503,96935.0,96934.0,0.005]
[1740241422614,0.1555923,96935.0,96934.0,0.002]
[1740241423129,0.1555923,96935.0,96934.0,0.005]
[1740241423801,0.1555923,96935.0,96934.0,0.002]
[1740241424189,0.0008503,96935.0,96934.0,0.004]
[1740241424389,0.0008503,96935.0,96934.0,0.002]
[1740241424594,0.0008503,96935.0,96930.0,0.00146051]
[1740241424915,0.1555923,96935.0,96934.0,0.003]
[1740241425120,0.0008503,96935.0,96934.0,0.003]
[1740241425502,0.0008503,96935.0,96930.0,0.00146051]
[1740241425713,0.154745,96934.0,96930.0,0.00346051]
[1740241426534,0.1555933,96935.0,96930.0,0.00346051]
[1740241426748,0.0008503,96935.0,96930.0,0.00346051]
[1740241426948,0.154744,96934.0,96930.0,0.00546051]
[1740241427158,0.154746,96933.0,96930.0,0.00346051]
[1740241427368,0.154748,96932.0,96930.0,0.00346051]
[1740241427815,0.154746,96933.0,96930.0,0.00346051]
[1740241428385,0.154749,96931.0,96930.0,0.00646051]
[1740241428566,0.2071743,96935.0,96930.0,0.00646051]
[1740241428775,0.2071743,96935.0,96930.0,0.00146051]
[1740241428979,0.2071743,96935.0,96930.0,0.00446051]
[1740241429196,0.0008503,96935.0,96930.0,0.00746051]
[1740241429410,0.154749,96931.0,96930.0,0.00446051]
[1740241429627,0.154749,96931.0,96930.0,0.00746051]
[1740241429848,0.154749,96931.0,96930.0,0.00446051]
[1740241430336,0.154749,96931.0,96930.0,0.00346051]
[1740241430819,0.154749,96931.0,96930.0,0.00646051]
[1740241431003,0.154749,96931.0,96930.0,0.00446051]
[1740241431488,0.154749,96931.0,96930.0,0.00846051]
[1740241434179,0.154749,96931.0,96930.0,0.00446051]
[1740241434360,0.154749,96931.0,96930.0,0.00746051]
[1740241434564,0.154749,96931.0,96930.0,0.00446051]
[1740241434788,0.154749,96931.0,96930.0,0.00146051]
[1740241435219,0.154749,96931.0,96930.0,0.00246051]
[1740241436239,0.154749,96931.0,96930.0,0.00546051]
[1740241436442,0.154749,96931.0,96930.0,0.00246051]
[1740241436795,0.154749,96931.0,96930.0,0.00346051]
[1740241438519,0.0008502,96934.0,96921.0,0.206351]
[1740241438746,0.15475,96930.0,96923.0,0.154761]
[1740241438980,0.154752,96929.0,96924.0,0.15476]
[1740241439376,0.10750254,96931.0,96924.0,0.15476]
[1740241439592,0.154752,96929.0,96924.0,0.15476]
[1740241440318,0.154752,96929.0,96924.0,0.15676]
[1740241440525,0.154752,96929.0,96924.0,0.002]
[1740241440822,0.154752,96929.0,96924.0,0.004]
[1740241441005,0.154752,96929.0,96924.0,0.15876]
[1740241441415,0.154752,96929.0,96925.0,0.0017004]
[1740241443053,0.154757,96926.0,96925.0,0.0017004]
[1740241443261,0.154757,96926.0,96925.0,0.0027004]
[1740241443679,0.154757,96926.0,96925.0,0.0037004]
[1740241444091,0.154757,96926.0,96925.0,0.0027004]
[1740241444301,0.154755,96927.0,96925.0,0.0037004]
[1740241444563,0.154757,96926.0,96925.0,0.0057004]
[1740241444930,0.154757,96926.0,96925.0,0.02537527]
[1740241445145,0.154757,96926.0,96925.0,0.0057004]
[1740241446021,0.154757,96926.0,96925.0,0.0017004]
[1740241446349,0.206331,96932.0,96925.0,0.0037004]
[1740241446521,0.154757,96926.0,96925.0,0.02537527]
[1740241446728,0.154757,96926.0,96925.0,0.0037004]
[1740241446932,0.154757,96926.0,96925.0,0.02137527]
[1740241447136,0.206338,96928.0,96925.0,0.0067004]
[1740241447288,0.154756,96927.0,96925.0,0.02637527]
[1740241447504,0.154757,96926.0,96925.0,0.02637527]
[1740241447825,0.206338,96928.0,96925.0,0.02637527]
[1740241448203,0.0008502,96934.0,96925.0,0.02637527]
[1740241448501,0.206335,96930.0,96925.0,0.02637527]
[1740241448706,0.154757,96926.0,96925.0,0.02637527]
[1740241448903,0.154757,96926.0,96925.0,0.0067004]
[1740241449127,0.154757,96926.0,96925.0,0.0047004]
[1740241449331,0.154757,96926.0,96925.0,0.0067004]
[1740241449543,0.154757,96926.0,96925.0,0.0037004]
[1740241449753,0.154757,96926.0,96925.0,0.02137527]
[1740241449982,0.154757,96926.0,96925.0,0.0057004]
[1740241450396,0.154757,96926.0,96925.0,0.0037004]
[1740241450711,0.154757,96926.0,96925.0,0.0067004]
[1740241452516,0.154757,96926.0,96925.0,0.02637527]
[1740241452770,0.154757,96926.0,96925.0,0.0067004]
[1740241453386,0.154757,96926.0,96925.0,0.02637527]
[1740241453538,0.154757,96926.0,96925.0,0.0067004]
[1740241453732,0.154757,96926.0,96925.0,0.02637527]
[1740241454501,0.154757,96926.0,96925.0,0.0067004]
[1740241454933,0.154757,96926.0,96925.0,0.02637527]
[1740241455140,0.154757,96926.0,96925.0,0.0067004]
[1740241457777,0.154757,96926.0,96925.0,0.02637527]
[1740241457942,0.154757,96926.0,96925.0,0.0067004]
[1740241458336,0.154757,96926.0,96925.0,0.02637527]
[1740241459482,0.154757,96926.0,96925.0,0.0067004]
[1740241459841,0.154757,96926.0,96925.0,0.02637527]
[1740241460019,0.154757,96926.0,96925.0,0.0067004]
[1740241460230,0.154757,96926.0,96925.0,0.02637527]
[1740241460406,0.154757,96926.0,96925.0,0.0067004]
[1740241460732,0.154757,96926.0,96925.0,0.02637527]
[1740241460945,0.154757,96926.0,96925.0,0.0067004]
[1740241461147,0.154757,96926.0,96925.0,0.02637527]
[1740241461408,0.0008502,96934.0,96925.0,0.0067004]
[1740241461621,0.0008502,96934.0,96933.0,0.154746]
[1740241462185,0.0008502,96934.0,96933.0,0.17441109]
[1740241467389,0.0008502,96934.0,96933.0,0.17541109]
[1740241468763,0.0008502,96934.0,96933.0,0.17441109]
[1740241468991,0.0008502,96934.0,96933.0,0.17841109]
[1740241469420,0.0008502,96934.0,96933.0,0.17641109]
[1740241469840,0.0008502,96934.0,96933.0,0.17841109]
[1740241483261,0.0008502,96934.0,96933.0,0.02366509]
[1740241483464,0.1555942,96934.0,96933.0,0.02366509]
[1740241483879,0.1555942,96934.0,96933.0,0.004]
[1740241484711,0.15659425,96934.0,96933.0,0.004]
[1740241484915,0.1555942,96934.0,96933.0,0.004]
[1740241485541,0.1555942,96934.0,96933.0,0.002]
[1740241485692,0.154757,96926.0,96925.0,0.0017004]
[1740241486108,0.154757,96926.0,96925.0,0.02137527]
[1740241486309,0.154757,96926.0,96925.0,0.0017004]
[1740241486569,0.20634,96928.0,96916.0,0.154771]
[1740241486813,0.154762,96923.0,96916.0,0.154771]
[1740241487021,0.15476,96924.0,96918.0,0.154769]
[1740241487195,0.15476,96924.0,96917.0,0.17445565]
[1740241487411,0.154762,96923.0,96919.0,0.0196822]
[1740241487616,0.154762,96923.0,96918.0,0.01968342]
[1740241487824,0.3247,96933.0,96920.0,0.01968098]
[1740241487970,0.10750254,96930.0,96925.0,0.005]
[1740241488181,0.3247,96933.0,96925.0,0.005]
[1740241488382,0.15475,96930.0,96926.0,0.01967365]
[1740241488611,0.154748,96932.0,96926.0,0.01967365]
[1740241488936,0.154748,96932.0,96922.0,0.154763]
[1740241489134,0.154751,96930.0,96919.0,0.206357]
[1740241489343,0.53103,96933.0,96923.0,0.01967731]
[1740241489484,0.3247,96933.0,96926.0,0.001]
[1740241489918,0.154755,96927.0,96926.0,0.001]
[1740241490325,0.15575505,96927.0,96926.0,0.001]
[1740241490737,0.154757,96926.0,96925.0,0.001701]
[1740241492114,0.154757,96926.0,96925.0,0.003701]
[1740241492687,0.154757,96926.0,96925.0,0.006701]
[1740241495694,0.479457,96926.0,96925.0,0.006701]
[1740241503402,0.206348,96924.0,96909.0,0.0017008]
[1740241503602,0.10750254,96920.0,96914.0,0.154775]
[1740241503947,0.154762,96923.0,96915.0,0.17446109]
[1740241504118,0.26226354,96924.0,96916.0,0.154771]
[1740241504302,0.26226354,96924.0,96916.0,0.17445687]
[1740241504488,0.154762,96923.0,96916.0,0.01968587]
[1740241504689,0.26226254,96924.0,96916.0,0.17445787]
[1740241505374,0.26226254,96924.0,96916.0,0.17645787]
[1740241505545,0.26226254,96924.0,96916.0,0.17945787]
[1740241505694,0.154762,96923.0,96916.0,0.17945787]
[1740241505889,0.154762,96923.0,96916.0,0.02468587]
[1740241506088,0.10750254,96924.0,96916.0,0.005]
[1740241506332,0.10750254,96924.0,96917.0,0.01968465]
[1740241506679,0.10750254,96924.0,96917.0,0.17445465]
[1740241506843,0.26226354,96924.0,96917.0,0.17445465]
[1740241507709,0.26226354,96924.0,96917.0,0.02268465]
[1740241507917,0.154763,96923.0,96917.0,0.02268465]
[1740241508346,0.154763,96923.0,96917.0,0.02468465]
[1740241508963,0.154762,96923.0,96917.0,0.02468465]
[1740241509172,0.154762,96923.0,96917.0,0.02268465]
[1740241509485,0.154764,96922.0,96917.0,0.02468465]
[1740241509939,0.154765,96921.0,96917.0,0.02468465]
[1740241510119,0.154767,96920.0,96917.0,0.02468465]
[1740241510314,0.10750254,96924.0,96917.0,0.02168465]
[1740241510518,0.154764,96922.0,96917.0,0.02468465]
[1740241510917,0.154765,96921.0,96917.0,0.02268465]
[1740241511120,0.20635,96923.0,96917.0,0.02268465]
[1740241511318,0.154766,96920.0,96917.0,0.02268465]
[1740241511618,0.10750254,96924.0,96917.0,0.02768465]
[1740241511781,0.154768,96919.0,96917.0,0.02468465]
[1740241511982,0.154768,96919.0,96913.0,0.154777]
[1740241512183,0.154768,96919.0,96918.0,0.01968342]
[1740241512406,0.154768,96919.0,96917.0,0.006]
[1740241512603,0.154768,96919.0,96918.0,0.01968342]
[1740241512784,0.154768,96919.0,96917.0,0.008]
[1740241513614,0.15477,96918.0,96917.0,0.005]
[1740241513820,0.15477,96918.0,96917.0,0.01]
[1740241514007,0.15477,96918.0,96917.0,0.005]
[1740241514440,0.154772,96917.0,96912.0,0.154778]
[1740241514646,0.16516075,96917.0,96912.0,0.154778]
[1740241515324,0.154773,96916.0,96910.0,0.154782]
[1740241515531,0.01038875,96917.0,96909.0,0.0017008]
[1740241515532,0.16515975,96917.0,96911.0,0.15478]
[1740241515883,0.01038875,96917.0,96912.0,0.02369076]
[1740241516210,0.206358,96919.0,96912.0,0.02369076]
[1740241516454,0.154777,96913.0,96912.0,0.02369076]
[1740241516663,0.154777,96913.0,96912.0,0.01]
[1740241516876,0.48047705,96913.0,96912.0,0.01]
[1740241517083,0.479477,96913.0,96912.0,0.004]
[1740241517284,0.154782,96910.0,96909.0,0.0017008]
[1740241518255,0.15578205,96910.0,96909.0,0.0017008]
[1740241518771,0.16352456,96910.0,96909.0,0.0017008]
[1740241520288,0.16252451,96910.0,96909.0,0.0017008]
[1740241520453,0.16352456,96910.0,96909.0,0.0017008]
[1740241520879,0.154795,96902.0,96896.0,0.154804]
[1740241521080,0.154795,96902.0,96896.0,7.1e-05]
[1740241521316,0.154797,96901.0,96896.0,7.1e-05]
[1740241521496,0.16253951,96901.0,96896.0,7.1e-05]
[1740241522223,0.16253951,96901.0,96896.0,0.002071]
[1740241522399,0.154799,96900.0,96896.0,0.002071]
[1740241522600,0.154799,96900.0,96896.0,7.1e-05]
[1740241523031,0.16254151,96900.0,96896.0,7.1e-05]
[1740241523544,0.154802,96898.0,96896.0,7.1e-05]
[1740241523977,0.154802,96898.0,96896.0,0.002071]
[1740241524151,0.00774251,96900.0,96896.0,0.003071]
[1740241524352,0.00774251,96899.0,96896.0,0.003071]
[1740241524557,0.16254351,96899.0,96896.0,0.003071]
[1740241524857,0.16254351,96899.0,96896.0,0.004071]
[1740241525075,0.16254351,96899.0,96896.0,0.007071]
[1740241525076,0.154803,96897.0,96896.0,0.007071]
[1740241525268,0.154803,96897.0,96896.0,0.003071]
[1740241525477,0.154803,96897.0,96896.0,7.1e-05]
[1740241525637,0.154803,96897.0,96896.0,0.004071]
[1740241525823,0.154803,96897.0,96896.0,0.007071]
[1740241526182,0.00774251,96898.0,96896.0,0.007071]
[1740241526387,0.154803,96897.0,96896.0,0.007071]
[1740241526536,0.16254551,96897.0,96896.0,0.007071]
[1740241526744,0.16254551,96897.0,96896.0,0.003071]
[1740241526979,0.00774251,96897.0,96896.0,0.003071]
[1740241527160,0.00774251,96897.0,96896.0,0.005071]
[1740241527356,0.00774251,96897.0,96896.0,0.008071]
[1740241527626,0.16254551,96897.0,96896.0,7.1e-05]
[1740241527939,0.16254551,96897.0,96896.0,0.006071]
[1740241528409,0.16254551,96897.0,96896.0,0.02720651]
[1740241528608,0.16254551,96897.0,96896.0,0.006071]
[1740241528816,0.16254551,96897.0,96896.0,0.02720651]
[1740241529024,0.16254551,96897.0,96896.0,0.006071]
[1740241529229,0.16254551,96897.0,96896.0,0.02720651]
[1740241529382,0.16254551,96897.0,96896.0,0.006071]
[1740241529626,0.16254551,96897.0,96896.0,0.02720651]
[1740241529821,0.16254551,96897.0,96896.0,0.006071]
[1740241530094,0.16254551,96897.0,96896.0,0.02720651]
[1740241530272,0.16254551,96897.0,96896.0,0.006071]
[1740241530471,0.16254551,96897.0,96896.0,0.02720651]
[1740241530672,0.16254551,96897.0,96896.0,0.006071]
[1740241531586,0.16254551,96897.0,96896.0,0.0069215]
[1740241533293,0.154803,96897.0,96896.0,0.0069215]
[1740241533534,0.16252777,96897.0,96896.0,0.0069215]
[1740241536670,0.154813,96891.0,96890.0,0.0017008]
[1740241536876,0.154813,96891.0,96890.0,0.02284469]
[1740241537686,0.206414,96893.0,96890.0,0.02284469]
[1740241537888,0.154813,96891.0,96890.0,0.02884469]
[1740241538088,0.206407,96896.0,96890.0,0.03284469]
[1740241538564,0.154806,96895.0,96890.0,0.03284469]
[1740241538889,0.00772477,96891.0,96890.0,0.02884469]
[1740241539311,0.00772477,96891.0,96890.0,0.02284469]
[1740241539495,0.16253777,96891.0,96890.0,0.02784469]
[1740241540077,0.16253777,96891.0,96890.0,0.02284469]
[1740241540298,0.16253777,96891.0,96890.0,0.02984469]
[1740241540517,0.16253777,96891.0,96890.0,0.02784469]
[1740241540722,0.16253777,96891.0,96890.0,0.03184469]
[1740241541215,0.00772477,96891.0,96890.0,0.03184469]
[1740241541551,0.16253777,96891.0,96890.0,0.03184469]
[1740241542614,0.00772477,96891.0,96890.0,0.03184469]
[1740241543934,0.00772477,96891.0,96890.0,0.26575869]
[1740241544123,0.00772477,96891.0,96890.0,0.11094469]
[1740241544928,0.00772477,96891.0,96890.0,0.03184469]
[1740241546632,0.16253777,96891.0,96890.0,0.03184469]
[1740241548099,0.00772477,96891.0,96890.0,0.03184469]
[1740241548303,0.16253777,96891.0,96890.0,0.03184469]
[1740241551052,0.00772477,96891.0,96890.0,0.03184469]
[1740241552289,0.16253777,96891.0,96890.0,0.03184469]
[1740241555882,0.16253777,96891.0,96890.0,0.02684469]
[1740241556213,0.16253777,96891.0,96890.0,0.02484469]
[1740241556414,0.16253777,96891.0,96890.0,0.02584469]
[1740241556746,0.00772477,96891.0,96890.0,0.02584469]
[1740241557739,0.00772477,96891.0,96890.0,0.02484469]
[1740241557978,0.00772477,96891.0,96890.0,0.02384469]
[1740241558548,0.16253777,96891.0,96890.0,0.02384469]
[1740241559372,0.16253777,96891.0,96890.0,0.02284469]
[1740241559558,0.16253777,96891.0,96890.0,0.02384469]
[1740241559999,0.16253777,96891.0,96890.0,0.02484469]
[1740241560207,0.16253777,96891.0,96890.0,0.02384469]
[1740241560407,0.16253777,96891.0,96890.0,0.02484469]
[1740241565569,0.16253777,96891.0,96890.0,0.02284469]
[1740241566679,0.16253777,96891.0,96890.0,0.0017008]
[1740241568366,0.71553782,96891.0,96890.0,0.0017008]
[1740241568526,0.81718346,96891.0,96890.0,0.0017008]
[1740241568729,0.89570202,96891.0,96890.0,0.0017008]
[1740241569566,0.89870202,96891.0,96890.0,0.0017008]
[1740241570026,0.89570202,96891.0,96890.0,0.0017008]
[1740241570440,0.90670202,96891.0,96890.0,0.0027008]
[1740241571286,0.87698346,96891.0,96890.0,0.0027008]
[1740241571901,0.77433777,96891.0,96890.0,0.0027008]
[1740241572351,0.64823777,96891.0,96890.0,0.0027008]
[1740241572524,0.49342477,96891.0,96890.0,0.0027008]
[1740241572924,0.49342477,96891.0,96890.0,0.02398532]
[1740241573497,0.49342477,96891.0,96890.0,0.0027008]
[1740241579294,0.49342477,96891.0,96890.0,0.02411675]
[1740241581543,0.49342477,96891.0,96890.0,0.0027008]
[1740241581755,0.49342477,96891.0,96890.0,0.02411675]
[1740241582336,0.49342477,96891.0,96890.0,0.0027008]
[1740241583219,0.49342477,96891.0,96890.0,0.02411675]
[1740241583857,0.49342477,96891.0,96890.0,0.0027008]
[1740241586425,0.49342477,96891.0,96890.0,0.02411675]
[1740241586603,0.49342477,96891.0,96890.0,0.17867808]
[1740241586927,0.49342477,96891.0,96890.0,0.02386408]
[1740241587443,0.48742477,96891.0,96890.0,0.02286408]
[1740241587852,0.49342477,96891.0,96890.0,0.02386408]
[1740241588054,0.33842477,96891.0,96890.0,0.17867808]
[1740241588207,0.34242477,96891.0,96890.0,0.17867808]
[1740241588392,0.34242477,96891.0,96890.0,0.02386408]
[1740241588797,0.34442477,96891.0,96890.0,0.02386408]
[1740241588976,0.33842477,96891.0,96890.0,0.02286408]
[1740241590005,0.34342477,96891.0,96890.0,0.02286408]
[1740241590347,0.33842477,96891.0,96890.0,0.02286408]
[1740241590847,0.01672477,96891.0,96890.0,0.02286408]
[1740241591087,0.01672477,96891.0,96890.0,0.17767808]
[1740241592804,0.01372477,96891.0,96890.0,0.17767808]
[1740241593376,0.01472477,96891.0,96890.0,0.17767808]
[1740241593555,0.01372477,96891.0,96890.0,0.17767808]
[1740241593924,0.00872477,96891.0,96890.0,0.17767808]
[1740241594716,0.00872477,96891.0,96890.0,0.26077808]
[1740241595252,0.00972477,96891.0,96890.0,0.26077808]
[1740241596090,0.00972477,96891.0,96890.0,0.02286408]
[1740241596305,0.00972477,96891.0,96890.0,0.17767808]
[1740241596719,0.00972477,96891.0,96890.0,0.17727437]
[1740241596884,0.00972477,96891.0,96890.0,0.02246037]
[1740241598997,0.16453777,96891.0,96890.0,0.02246037]
[1740241599206,0.16453777,96891.0,96890.0,0.00104442]
[1740241599439,0.24663777,96891.0,96890.0,0.00104442]
[1740241601746,0.154814,96890.0,96889.0,1.03195688]
[1740241601910,0.154814,96890.0,96889.0,1.03200571]
[1740241602684,0.479514,96890.0,96889.0,1.03200571]
[1740241602835,0.479514,96890.0,96889.0,1.05342306]